bitfinex-derivatives/quotes_BTCF0:USTF0_20260107
["timestamp","ask_amount","ask_price","bid_price","bid_amount"]
[1767747435500,0.19826776,92968.0,92947.0,0.010763]
[1767747435690,0.19826776,92968.0,92944.0,0.09148]
[1767747435691,0.09856805,92964.0,92944.0,0.09148]
[1767747435891,0.09856805,92962.0,92944.0,0.09148]
[1767747436095,0.09856805,92960.0,92939.0,0.010764]
[1767747436301,0.09870341,92959.0,92939.0,0.010764]
[1767747437704,0.09870341,92959.0,92937.0,0.09148]
[1767747437705,0.09856805,92956.0,92937.0,0.09148]
[1767747437901,0.09856805,92955.0,92844.0,0.07739296]
[1767747438103,0.09856805,92953.0,92920.0,0.11357213]
[1767747438406,0.09856805,92953.0,92936.0,0.010764]
[1767747438701,0.21996805,92952.0,92936.0,0.010764]
[1767747439002,0.09869118,92951.0,92938.0,0.010764]
[1767747439207,0.00012313,92951.0,92940.0,0.010764]
[1767747439411,0.09148,92950.0,92940.0,0.010764]
[1767747441210,0.00012313,92951.0,92936.0,0.09413497]
[1767747441404,0.1214,92952.0,92938.0,0.09413497]
[1767747441601,0.0055,92961.0,92946.0,0.010763]
[1767747441806,0.0055,92961.0,92955.0,0.010762]
[1767747442010,0.09702,92962.0,92952.0,0.010763]
[1767747442512,0.00010038,92961.0,92952.0,0.010763]
[1767747443704,0.00010038,92961.0,92944.0,0.09690242]
[1767747443908,0.09856805,92982.0,92967.0,0.010761]
[1767747444209,0.09152,92981.0,92967.0,0.010761]
[1767747444408,0.09856805,92982.0,92969.0,0.010761]
[1767747444706,0.010759,92985.0,92960.0,0.19103739]
[1767747444911,0.09152,92981.0,92961.0,0.09413497]
[1767747445108,0.09152,92980.0,92965.0,0.010761]
[1767747445412,5.113e-05,92979.0,92965.0,0.010761]
[1767747445704,5.113e-05,92979.0,92967.0,0.010761]
[1767747447408,5.113e-05,92979.0,92969.0,0.010761]
[1767747450015,0.09152,92982.0,92965.0,0.09413497]
[1767747450215,0.09152,92983.0,92965.0,0.09413497]
[1767747450415,0.09152,92983.0,92971.0,0.01076]
[1767747450616,0.09152,92983.0,92968.0,0.010761]
[1767747451006,0.09152,92983.0,92967.0,0.010761]
[1767747451708,0.09152,92983.0,92969.0,0.010761]
[1767747452916,0.09152,92985.0,92973.0,0.01076]
[1767747453122,0.09152,92985.0,92970.0,0.01076]
[1767747453822,0.09152,92985.0,92972.0,0.01076]
[1767747454420,0.09590148,92992.0,92965.0,0.0916179]
[1767747454622,0.09152,92991.0,92976.0,0.09297576]
[1767747454826,0.09152,92991.0,92986.0,0.010759]
[1767747455017,0.09152,92994.0,92986.0,0.010759]
[1767747455217,0.09590148,92999.0,92983.0,0.010759]
[1767747455421,0.09590148,92999.0,92976.0,0.09297576]
[1767747455724,0.20648004,92987.0,92969.0,0.010761]
[1767747455913,0.20648004,92987.0,92966.0,0.09152]
[1767747455914,0.19572104,92982.0,92966.0,0.010761]
[1767747456110,0.19572104,92982.0,92968.0,0.010761]
[1767747456319,0.19572104,92978.0,92941.0,0.010764]
[1767747456519,0.09590148,92964.0,92929.0,0.0916179]
[1767747456725,0.09590148,92962.0,92954.0,0.010762]
[1767747457728,0.09590148,92962.0,92940.0,0.23260623]
[1767747458729,0.09590148,92962.0,92952.0,0.010763]
[1767747459927,0.010762,92959.0,92944.0,0.010763]
[1767747460115,0.010762,92959.0,92946.0,0.010763]
[1767747460310,0.010762,92959.0,92942.0,0.010764]
[1767747460527,0.09590148,92957.0,92944.0,0.010763]
[1767747461322,0.09590148,92949.0,92928.0,0.09152]
[1767747461617,0.09590148,92949.0,92936.0,0.010764]
[1767747461815,0.09590148,92949.0,92929.0,0.09152]
[1767747461816,0.09590148,92949.0,92939.0,0.010764]
[1767747462031,0.09590148,92949.0,92929.0,0.09152]
[1767747462032,0.010763,92948.0,92933.0,0.010765]
[1767747462220,0.09590148,92949.0,92933.0,0.010765]
[1767747462421,0.09590148,92949.0,92929.0,0.18449576]
[1767747462623,0.09590148,92949.0,92937.0,0.010764]
[1767747462818,0.010763,92952.0,92937.0,0.010764]
[1767747463128,0.09590148,92960.0,92937.0,0.010764]
[1767747463129,0.09152,92959.0,92946.0,0.010763]
[1767747463330,0.09152,92959.0,92932.0,0.010765]
[1767747463331,0.09590148,92954.0,92932.0,0.09297576]
[1767747464132,0.09590148,92954.0,92942.0,0.010764]
[1767747464628,0.09590148,92951.0,92943.0,0.7406]
[1767747464932,0.20648404,92949.0,92934.0,0.010765]
[1767747465229,0.10666448,92949.0,92931.0,0.010765]
[1767747465529,0.010763,92947.0,92925.0,0.09297576]
[1767747465822,0.010764,92943.0,92929.0,0.102285]
[1767747466022,0.10666548,92943.0,92921.0,0.0916179]
[1767747466230,0.010765,92934.0,92917.0,0.102287]
[1767747466425,0.09590148,92937.0,92917.0,0.010767]
[1767747466823,0.09590148,92937.0,92919.0,0.010766]
[1767747467327,0.10666648,92936.0,92919.0,0.010766]
[1767747467925,0.09981956,92928.0,92899.0,0.09152]
[1767747468118,0.13963047,92940.0,92899.0,0.09152]
[1767747468119,0.09590148,92923.0,92908.0,0.010768]
[1767747468323,0.09152,92926.0,92901.0,0.0916179]
[1767747468526,0.19572104,92931.0,92901.0,0.0916179]
[1767747468527,0.09152,92925.0,92902.0,0.09297576]
[1767747468728,0.09981956,92937.0,92917.0,0.010767]
[1767747468729,0.09152,92929.0,92917.0,0.010767]
[1767747468926,0.09590148,92937.0,92919.0,0.010766]
[1767747471237,0.010765,92934.0,92911.0,0.0916179]
[1767747471829,0.010765,92934.0,92916.0,0.010767]
[1767747472030,0.09590148,92934.0,92916.0,0.010767]
[1767747472231,0.09590148,92932.0,92916.0,0.010767]
[1767747474343,0.19572104,92931.0,92915.0,0.010767]
[1767747474644,0.09590148,92930.0,92917.0,0.010767]
[1767747475345,0.09590148,92930.0,92919.0,0.010766]
[1767747475545,0.09590148,92930.0,92910.0,0.09152]
[1767747475546,0.19572104,92937.0,92924.0,0.010766]
[1767747475845,0.09156,92936.0,92924.0,0.010766]
[1767747476235,0.09156,92935.0,92924.0,0.010766]
[1767747476645,0.09590148,92937.0,92924.0,0.010766]
[1767747476943,0.09156,92936.0,92924.0,0.010766]
[1767747477146,0.09590148,92937.0,92924.0,0.010766]
[1767747477347,0.09156,92936.0,92924.0,0.010766]
[1767747477640,0.09590148,92937.0,92915.0,0.09297576]
[1767747477841,0.00215196,92939.0,92931.0,0.010765]
[1767747478247,0.00215196,92939.0,92921.0,0.09297576]
[1767747478443,0.00215196,92939.0,92928.0,0.010765]
[1767747478638,0.00215196,92939.0,92930.0,0.010765]
[1767747479033,0.00215196,92939.0,92917.0,0.0916179]
[1767747479237,0.00215196,92939.0,92925.0,0.010766]
[1767747479448,0.09245535,92939.0,92925.0,0.010766]
[1767747479945,0.09245535,92939.0,92927.0,0.010765]
[1767747480146,0.09245535,92939.0,92929.0,0.010765]
[1767747480754,0.09245535,92939.0,92929.0,0.00861234]
[1767747481545,0.09245535,92939.0,92925.0,0.010766]
[1767747481940,0.09245535,92939.0,92927.0,0.010765]
[1767747482243,0.09245535,92939.0,92929.0,0.010765]
[1767747482448,0.09245535,92939.0,92931.0,0.010765]
[1767747482847,0.00215196,92939.0,92919.0,0.09451294]
[1767747483041,0.00215196,92939.0,92931.0,0.010765]
[1767747483350,0.00215196,92939.0,92928.0,0.010765]
[1767747483542,0.00215196,92939.0,92930.0,0.010765]
[1767747484854,0.09156,92943.0,92932.0,0.010765]
[1767747485046,0.10166687,92946.0,92932.0,0.010765]
[1767747485349,0.19322687,92946.0,92932.0,0.010765]
[1767747485951,0.18735883,92944.0,92856.0,0.02106034]
[1767747486147,0.18735883,92886.0,92853.0,0.00716215]
[1767747486449,0.09156,92885.0,92868.0,0.010772]
[1767747486650,0.010769,92899.0,92875.0,0.10528394]
[1767747486854,0.09156,92894.0,92875.0,0.19978438]
[1767747487153,0.010769,92899.0,92871.0,0.010772]
[1767747487154,0.01077,92889.0,92871.0,0.010772]
[1767747487353,0.01077,92889.0,92872.0,0.01077249]
[1767747487558,8.843e-05,92888.0,92872.0,0.01077249]
[1767747488147,8.843e-05,92888.0,92846.0,0.18901338]
[1767747488347,0.010771,92882.0,92863.0,0.010773]
[1767747488549,0.010771,92880.0,92860.0,0.010773]
[1767747489152,0.010771,92880.0,92862.0,0.010773]
[1767747489656,0.10167487,92876.0,92857.0,0.09156]
[1767747489847,0.09645496,92880.0,92854.0,0.010774]
[1767747489848,0.10167587,92873.0,92854.0,0.010774]
[1767747490048,0.01077,92889.0,92822.0,0.377058]
[1767747490049,0.18735883,92867.0,92846.0,0.010775]
[1767747490248,8.687e-05,92872.0,92829.0,0.09451294]
[1767747490249,0.09090387,92860.0,92829.0,0.09451294]
[1767747490554,8.445e-05,92859.0,92841.0,0.19978838]
[1767747491255,8.445e-05,92859.0,92846.0,0.010775]
[1767747491561,0.09156,92864.0,92836.0,0.18607294]
[1767747491743,0.09090387,92867.0,92845.0,0.010775]
[1767747491946,0.09156,92866.0,92845.0,0.18901338]
[1767747492150,0.010773,92865.0,92840.0,0.09451294]
[1767747492757,0.09090387,92860.0,92840.0,0.09451294]
[1767747492948,0.09090387,92860.0,92836.0,0.09156]
[1767747492949,0.010773,92858.0,92836.0,0.09156]
[1767747493151,0.09090387,92860.0,92837.0,0.010776]
[1767747493753,0.09156,92859.0,92840.0,0.010775]
[1767747493960,0.09090387,92860.0,92843.0,0.010775]
[1767747494158,0.09156,92861.0,92843.0,0.010775]
[1767747494664,0.36636,92897.0,92836.0,0.18607294]
[1767747494665,0.09645496,92874.0,92856.0,0.010774]
[1767747494966,0.0916,92875.0,92858.0,0.010773]
[1767747495561,0.010771,92881.0,92858.0,0.010773]
[1767747495562,0.09645496,92898.0,92858.0,0.09450044]
[1767747495862,0.09645496,92898.0,92842.0,0.010775]
[1767747495863,0.01077,92889.0,92866.0,0.09450044]
[1767747496060,0.01077,92889.0,92867.0,0.09451294]
[1767747496262,0.010769,92893.0,92868.0,0.19978538]
[1767747496464,0.01077,92890.0,92868.0,0.09451294]
[1767747496762,0.0176758,92899.0,92868.0,0.09451294]
[1767747496763,0.09090387,92892.0,92868.0,0.09451294]
[1767747496963,0.01077,92884.0,92864.0,0.010773]
[1767747497152,0.09090387,92883.0,92863.0,0.0916]
[1767747497763,0.09090387,92883.0,92863.0,0.102373]
[1767747498170,0.01077,92884.0,92859.0,0.010773]
[1767747498171,0.18735883,92879.0,92859.0,0.010773]
[1767747498362,0.0916,92878.0,92859.0,0.010773]
[1767747498665,0.010771,92879.0,92859.0,0.010773]
[1767747498866,0.0916,92878.0,92859.0,0.010773]
[1767747499463,0.0916,92878.0,92862.0,0.010773]
[1767747499766,0.0916,92879.0,92862.0,0.010773]
[1767747499956,0.010771,92883.0,92862.0,0.010773]
[1767747500455,0.0916,92882.0,92862.0,0.10528594]
[1767747501065,0.0916,92882.0,92865.0,0.10528594]
[1767747501466,0.010771,92884.0,92865.0,0.10528594]
[1767747502068,0.010771,92882.0,92865.0,0.09451294]
[1767747502470,0.01077,92885.0,92866.0,0.09451294]
[1767747503862,0.10237,92888.0,92866.0,0.10528494]
[1767747504070,0.01077,92886.0,92866.0,0.10528494]
[1767747505568,0.0916,92888.0,92868.0,0.010772]
[1767747506768,0.09090387,92894.0,92869.0,0.09451294]
[1767747506972,0.0916,92893.0,92877.0,0.010771]
[1767747507169,0.0916,92893.0,92872.0,0.010772]
[1767747507370,0.01077,92892.0,92872.0,0.010772]
[1767747507669,0.0916,92893.0,92875.0,0.010771]
[1767747508275,0.10237,92893.0,92875.0,0.010771]
[1767747508767,0.10237,92893.0,92877.0,0.010771]
[1767747508768,0.01077,92893.0,92877.0,0.010771]
[1767747509279,0.09645496,92885.0,92869.0,0.0916]
[1767747509665,0.10722496,92885.0,92870.0,0.4406]
[1767747510066,0.10722496,92885.0,92869.0,0.0916]
[1767747510266,0.01077,92885.0,92869.0,0.0916]
[1767747511175,0.09645496,92885.0,92869.0,0.0916]
[1767747511377,0.010771,92881.0,92869.0,0.0916]
[1767747511877,0.09916362,92879.0,92856.0,0.0985564]
[1767747512065,0.010771,92880.0,92857.0,0.1901564]
[1767747512873,0.09919217,92879.0,92857.0,0.0916]
[1767747513077,0.19835579,92872.0,92846.0,0.010775]
[1767747513377,0.0916,92873.0,92858.0,0.010773]
[1767747514377,0.0916,92873.0,92845.0,0.0916]
[1767747514378,0.19835579,92870.0,92845.0,0.0916]
[1767747514568,0.19835579,92870.0,92854.0,0.010774]
[1767747514877,0.19835579,92870.0,92845.0,0.0916]
[1767747514878,0.010772,92867.0,92848.0,0.010775]
[1767747515063,0.010773,92865.0,92848.0,0.010775]
[1767747515263,0.008773,92865.0,92848.0,0.010775]
[1767747515680,0.010773,92863.0,92845.0,0.2009314]
[1767747515870,0.010773,92863.0,92845.0,0.102375]
[1767747516277,0.19835579,92862.0,92845.0,0.0916]
[1767747516870,0.19835579,92862.0,92838.0,0.1093324]
[1767747517478,0.102373,92861.0,92838.0,0.1093324]
[1767747517781,0.0916,92861.0,92838.0,0.1093324]
[1767747517970,0.0916,92861.0,92841.0,0.010775]
[1767747518171,0.010772,92870.0,92849.0,0.0985564]
[1767747518469,0.010772,92867.0,92849.0,0.0985564]
[1767747518669,0.0916,92869.0,92849.0,0.0985564]
[1767747518878,0.28995579,92869.0,92847.0,0.010775]
[1767747519384,0.19835579,92868.0,92847.0,0.010775]
[1767747519573,0.09919217,92874.0,92850.0,0.010774]
[1767747519774,0.0916,92873.0,92850.0,0.010774]
[1767747519970,0.19835579,92874.0,92850.0,0.010774]
[1767747520171,0.0916,92873.0,92853.0,0.1093304]
[1767747520676,0.0916,92873.0,92853.0,0.010774]
[1767747521280,0.10996417,92875.0,92853.0,0.010774]
[1767747521281,0.0916,92872.0,92853.0,0.010774]
[1767747521982,0.010771,92879.0,92850.0,0.09345146]
[1767747522284,0.010771,92879.0,92856.0,0.010774]
[1767747522484,0.010771,92877.0,92856.0,0.010774]
[1767747522783,0.20912679,92877.0,92856.0,0.010774]
[1767747523373,0.19835579,92875.0,92856.0,0.010774]
[1767747523574,0.09916362,92875.0,92856.0,0.010774]
[1767747523772,0.19835579,92874.0,92856.0,0.010774]
[1767747524181,0.20912779,92873.0,92853.0,0.010774]
[1767747524582,0.010772,92871.0,92850.0,0.010774]
[1767747524775,0.010772,92871.0,92852.0,0.010774]
[1767747525279,0.19835579,92873.0,92852.0,0.010774]
[1767747525475,0.20912779,92872.0,92852.0,0.010774]
[1767747525676,0.09919217,92869.0,92850.0,0.010774]
[1767747525879,0.09919217,92869.0,92849.0,0.0916]
[1767747525880,0.09919217,92869.0,92852.0,0.010774]
[1767747526183,0.09919217,92869.0,92828.0,0.0985564]
[1767747526184,0.19835579,92854.0,92828.0,0.0985564]
[1767747526372,0.010774,92852.0,92831.0,0.010777]
[1767747526576,0.0916,92853.0,92837.0,0.010776]
[1767747526974,0.09916362,92860.0,92837.0,0.09345146]
[1767747527184,0.0916,92859.0,92849.0,0.010774]
[1767747527381,0.0916,92859.0,92839.0,0.09345146]
[1767747527382,0.0916,92859.0,92840.0,0.0985564]
[1767747527687,0.09916362,92860.0,92840.0,0.0985564]
[1767747527886,0.09916362,92860.0,92842.0,0.010775]
[1767747528277,0.09916362,92860.0,92840.0,0.010776]
[1767747528485,0.0916,92859.0,92840.0,0.010776]
[1767747529084,0.010774,92858.0,92840.0,0.010776]
[1767747529282,0.10993762,92853.0,92836.0,0.0916]
[1767747529682,0.10993762,92853.0,92832.0,0.010776]
[1767747530389,0.010774,92850.0,92832.0,0.010776]
[1767747530588,0.09916362,92844.0,92816.0,0.09345146]
[1767747530791,0.010775,92848.0,92816.0,0.09345146]
[1767747530978,0.102415,92845.0,92825.0,0.010777]
[1767747531290,0.010775,92842.0,92821.0,0.010778]
[1767747531589,8.039e-05,92841.0,92821.0,0.010778]
[1767747532089,0.010776,92840.0,92819.0,0.010778]
[1767747532388,0.10993962,92840.0,92819.0,0.010778]
[1767747532690,0.20157962,92839.0,92819.0,0.010778]
[1767747533189,0.19080362,92839.0,92822.0,0.010778]
[1767747533392,0.19080362,92839.0,92824.0,0.010777]
[1767747533787,0.09164,92839.0,92826.0,0.010777]
[1767747534686,8.039e-05,92841.0,92829.0,0.010777]
[1767747535890,0.00885539,92846.0,92829.0,0.010777]
[1767747536293,0.19835579,92862.0,92832.0,0.0985564]
[1767747536486,0.010774,92857.0,92839.0,0.010776]
[1767747536786,0.28999579,92861.0,92835.0,0.010776]
[1767747537091,0.010774,92850.0,92831.0,0.010777]
[1767747537290,0.20913079,92846.0,92821.0,0.09164]
[1767747537492,0.20913079,92846.0,92827.0,0.010777]
[1767747537786,0.20913079,92846.0,92829.0,0.010777]
[1767747538084,0.19835579,92845.0,92829.0,0.010777]
[1767747538290,0.19835579,92845.0,92818.0,0.09164]
[1767747538691,0.19835579,92845.0,92828.0,0.010777]
[1767747538996,0.19103894,92857.0,92834.0,0.11072256]
[1767747539194,0.09164,92856.0,92838.0,0.010776]
[1767747539694,0.08964,92856.0,92840.0,0.010776]
[1767747540084,0.010774,92855.0,92836.0,0.010776]
[1767747540280,0.08964,92856.0,92834.0,0.09994656]
[1767747540490,0.010774,92858.0,92834.0,0.09994656]
[1767747540688,0.010774,92858.0,92840.0,0.010776]
[1767747540894,0.09164,92857.0,92840.0,0.010776]
[1767747541089,0.010774,92856.0,92837.0,0.010776]
[1767747541391,0.102414,92856.0,92839.0,0.010776]
[1767747541590,0.010774,92854.0,92837.0,0.010776]
[1767747541786,0.09164,92856.0,92837.0,0.010776]
[1767747541990,0.08964,92856.0,92839.0,0.010776]
[1767747543097,0.08764,92856.0,92839.0,0.010776]
[1767747543392,0.010774,92855.0,92836.0,0.010776]
[1767747543590,0.010774,92855.0,92838.0,0.010776]
[1767747544485,0.08764,92856.0,92838.0,0.010776]
[1767747544894,0.08764,92856.0,92840.0,0.010775]
[1767747545583,0.19180642,92861.0,92835.0,0.09994656]
[1767747545584,0.20257942,92861.0,92844.0,0.010775]
[1767747545785,0.010773,92859.0,92844.0,0.010775]
[1767747546186,0.100413,92859.0,92835.0,0.09994656]
[1767747546381,0.100413,92859.0,92837.0,0.09290856]
[1767747546583,0.100413,92859.0,92844.0,0.010775]
[1767747546988,0.006773,92859.0,92844.0,0.010775]
[1767747547189,0.010773,92865.0,92844.0,0.09290856]
[1767747547393,0.09164,92864.0,92845.0,0.10368356]
[1767747547792,0.08964,92864.0,92847.0,0.010775]
[1767747548490,0.010773,92861.0,92845.0,0.09290856]
[1767747548691,0.010773,92861.0,92845.0,0.10368356]
[1767747549186,0.010773,92862.0,92845.0,0.10368356]
[1767747550497,0.010773,92862.0,92845.0,0.010775]
[1767747551496,0.09164,92864.0,92841.0,0.09290856]
[1767747551703,0.09164,92864.0,92849.0,0.010774]
[1767747552001,0.010773,92866.0,92849.0,0.010774]
[1767747552209,0.010773,92864.0,92846.0,0.010775]
[1767747552500,0.010773,92862.0,92846.0,0.010775]
[1767747552807,0.010773,92865.0,92846.0,0.010775]
[1767747553015,0.010773,92865.0,92848.0,0.010775]
[1767747553307,0.010773,92866.0,92850.0,0.010774]
[1767747553507,0.010773,92866.0,92844.0,0.09290856]
[1767747553695,0.010773,92866.0,92845.0,0.09290856]
[1767747554003,0.010773,92866.0,92847.0,0.010775]
[1767747554199,0.010773,92866.0,92839.0,0.09164]
[1767747554505,0.010773,92866.0,92846.0,0.010775]
[1767747554904,0.010773,92866.0,92847.0,0.4406]
[1767747555105,0.010773,92866.0,92848.0,0.010775]
[1767747555696,0.010773,92866.0,92850.0,0.010774]
[1767747556904,0.010773,92866.0,92847.0,0.010775]
[1767747557209,0.010773,92866.0,92849.0,0.010775]
[1767747558204,0.18371497,92868.0,92849.0,0.010775]
[1767747558394,0.18559217,92873.0,92849.0,0.010775]
[1767747558598,0.09164,92872.0,92858.0,0.010773]
[1767747558798,0.18559217,92873.0,92858.0,0.010773]
[1767747559094,0.09164,92872.0,92858.0,0.010773]
[1767747559504,0.09164,92872.0,92848.0,0.09751746]
[1767747559706,0.09164,92872.0,92849.0,0.09751746]
[1767747560102,0.18559217,92873.0,92847.0,0.010775]
[1767747560103,0.18559217,92873.0,92851.0,0.09751746]
[1767747560306,0.09164,92873.0,92853.0,0.19042602]
[1767747560506,0.09164,92873.0,92859.0,0.010773]
[1767747560908,0.18559217,92872.0,92848.0,0.09751746]
[1767747561104,0.09164,92873.0,92853.0,0.09751746]
[1767747561306,0.010771,92876.0,92863.0,0.010773]
[1767747561510,0.18559217,92878.0,92863.0,0.010773]
[1767747561710,0.09164,92877.0,92863.0,0.010773]
[1767747562106,0.09164,92876.0,92863.0,0.010773]
[1767747562302,0.102411,92876.0,92850.0,0.215327]
[1767747562504,0.19448597,92876.0,92861.0,0.010773]
[1767747562715,0.09207497,92875.0,92851.0,0.010774]
[1767747563404,0.18559217,92874.0,92856.0,0.010774]
[1767747563610,0.010772,92870.0,92856.0,0.010774]
[1767747564014,0.010772,92872.0,92858.0,0.010773]
[1767747565114,0.09207497,92873.0,92859.0,0.010773]
[1767747565316,0.09207497,92873.0,92860.0,0.010773]
[1767747565515,0.09207497,92873.0,92860.0,0.12108497]
[1767747565917,0.0935172,92872.0,92851.0,0.09751746]
[1767747566112,0.18559217,92871.0,92852.0,0.010774]
[1767747566417,0.19636617,92856.0,92841.0,0.09164]
[1767747567009,0.09207497,92856.0,92843.0,0.010775]
[1767747569415,0.09207497,92856.0,92841.0,0.09164]
[1767747569611,0.09207497,92856.0,92842.0,0.4]
[1767747570123,0.09207497,92856.0,92843.0,0.4406]
[1767747570329,0.19636617,92853.0,92843.0,0.3406]
[1767747570511,0.19636617,92853.0,92827.0,0.19042602]
[1767747570512,0.0935172,92852.0,92827.0,0.19042602]
[1767747570713,0.09207497,92851.0,92836.0,0.010776]
[1767747571223,0.09207497,92851.0,92840.0,0.010776]
[1767747572325,0.09207497,92851.0,92834.0,0.010776]
[1767747572622,0.010774,92850.0,92836.0,0.010776]
[1767747572810,0.09207497,92851.0,92840.0,0.010776]
[1767747573010,0.010774,92854.0,92840.0,0.010776]
[1767747573216,0.010774,92854.0,92837.0,0.09003332]
[1767747573920,0.010774,92854.0,92839.0,0.010776]
[1767747574116,0.18708526,92850.0,92813.0,0.09003332]
[1767747574417,0.18708526,92850.0,92828.0,0.09003332]
[1767747574418,0.010775,92849.0,92828.0,0.09003332]
[1767747574615,0.010775,92844.0,92829.0,0.010777]
[1767747574918,0.010775,92845.0,92829.0,0.010777]
[1767747575320,0.0945284,92843.0,92826.0,0.010777]
[1767747575731,0.0945284,92835.0,92811.0,0.18114773]
[1767747576025,0.0945284,92835.0,92818.0,0.010778]
[1767747576623,0.0945284,92835.0,92820.0,0.010778]
[1767747577927,0.0945284,92835.0,92810.0,0.09164]
[1767747578123,0.1053054,92829.0,92812.0,0.010779]
[1767747578346,0.1053054,92827.0,92809.0,0.010779]
[1767747578526,0.0945284,92824.0,92801.0,0.09164]
[1767747578734,0.0945284,92816.0,92792.0,0.010781]
[1767747579027,0.09255686,92810.0,92789.0,0.00215544]
[1767747579221,0.09255686,92768.0,92739.0,0.07865843]
[1767747579427,0.010786,92750.0,92712.0,0.03215478]
[1767747579620,0.00040273,92739.0,92691.0,0.16377423]
[1767747579925,0.716,92738.0,92719.0,0.01079]
[1767747580226,0.716,92738.0,92692.0,0.010793]
[1767747580227,0.40009295,92737.0,92721.0,0.010789]
[1767747580424,0.40009295,92737.0,92692.0,0.010793]
[1767747580425,9.295e-05,92737.0,92722.0,0.010789]
[1767747580727,0.09164,92740.0,92727.0,0.010789]
[1767747581133,0.010779,92813.0,92724.0,0.09111441]
[1767747581431,0.14634105,92792.0,92737.0,0.09111441]
[1767747581619,0.010784,92771.0,92742.0,0.09111441]
[1767747581813,0.06985239,92793.0,92742.0,0.10190141]
[1767747582029,0.06985239,92793.0,92714.0,0.01079]
[1767747582030,0.010783,92778.0,92747.0,0.09111441]
[1767747582212,0.010784,92769.0,92747.0,0.09111441]
[1767747582420,0.09164,92769.0,92747.0,0.09111441]
[1767747583119,0.14029669,92790.0,92747.0,0.09111441]
[1767747583424,0.15616,92789.0,92749.0,0.09111441]
[1767747583625,0.010784,92772.0,92749.0,0.09111441]
[1767747583825,0.09168,92771.0,92749.0,0.09111441]
[1767747584221,0.010783,92773.0,92749.0,0.09111441]
[1767747584726,0.01875921,92771.0,92753.0,0.3406]
[1767747585038,0.01875921,92771.0,92742.0,0.09111441]
[1767747585039,0.010785,92759.0,92742.0,0.09111441]
[1767747585324,0.4,92779.0,92720.0,0.14030569]
[1767747585325,0.010785,92757.0,92734.0,0.09111441]
[1767747585524,0.010785,92763.0,92738.0,0.09111441]
[1767747585718,0.010785,92763.0,92740.0,0.09111441]
[1767747585919,0.2003,92773.0,92743.0,0.09111441]
[1767747586128,0.010784,92772.0,92747.0,0.09111441]
[1767747586329,0.010784,92769.0,92747.0,0.09111441]
[1767747587126,0.010784,92766.0,92747.0,0.09111441]
[1767747587434,0.010785,92763.0,92747.0,0.09111441]
[1767747588026,0.010784,92768.0,92747.0,0.09111441]
[1767747588232,0.010784,92768.0,92744.0,0.09168]
[1767747588233,0.2003,92773.0,92749.0,0.09111441]
[1767747588534,0.2003,92773.0,92751.0,0.09111441]
[1767747588834,0.010783,92774.0,92752.0,0.09111441]
[1767747589034,0.010783,92774.0,92753.0,0.09111441]
[1767747589236,0.010783,92774.0,92755.0,0.09111441]
[1767747592432,0.010783,92774.0,92754.0,0.09168]
[1767747592433,0.0247899,92791.0,92759.0,0.09111441]
[1767747592733,0.0247899,92790.0,92760.0,0.09003332]
[1767747592932,0.010782,92784.0,92761.0,0.09111441]
[1767747593131,0.010782,92785.0,92763.0,0.09111441]
[1767747593321,0.010782,92785.0,92765.0,0.09111441]
[1767747594122,0.010782,92782.0,92765.0,0.09111441]
[1767747595330,0.010782,92789.0,92767.0,0.18114773]
[1767747595633,0.010782,92789.0,92764.0,0.09172]
[1767747595634,0.010781,92790.0,92773.0,0.09111441]
[1767747595821,0.010781,92790.0,92776.0,0.09111441]
[1767747596025,0.010779,92808.0,92777.0,0.09003332]
[1767747596238,0.010779,92808.0,92774.0,0.09172]
[1767747596239,0.010782,92787.0,92778.0,0.09111441]
[1767747596737,0.010781,92790.0,92779.0,0.09172]
[1767747596937,0.010781,92793.0,92780.0,0.09111441]
[1767747597133,0.010781,92797.0,92780.0,0.09111441]
[1767747597437,0.010779,92808.0,92783.0,0.09111441]
[1767747597627,0.010779,92808.0,92784.0,0.09111441]
[1767747598228,0.010781,92792.0,92784.0,0.09111441]
[1767747598538,0.010781,92790.0,92779.0,0.09172]
[1767747598833,0.010781,92790.0,92772.0,0.84752]
[1767747598834,0.010781,92790.0,92780.0,0.09172]
[1767747599035,0.010781,92790.0,92781.0,0.09172]
[1767747599220,0.010781,92790.0,92782.0,0.09172]
[1767747599543,0.010783,92781.0,92774.0,0.09172]
[1767747599836,0.010783,92781.0,92775.0,0.09172]
[1767747600022,0.010783,92781.0,92776.0,0.09172]
[1767747600222,0.010783,92780.0,92775.0,0.09172]
[1767747600736,0.010783,92780.0,92776.0,0.09172]
[1767747600925,0.010783,92780.0,92775.0,0.09172]
[1767747601130,0.010782,92785.0,92767.0,0.09778633]
[1767747601433,0.010781,92791.0,92775.0,0.09539252]
[1767747601639,0.01078,92804.0,92785.0,0.09539252]
[1767747601935,0.09172,92822.0,92794.0,0.09539252]
[1767747602146,0.01485983,92824.0,92800.0,0.09539252]
[1767747602437,0.0929353,92826.0,92802.0,0.09539252]
[1767747602639,0.09945399,92812.0,92783.0,0.09173818]
[1767747602837,0.01078,92799.0,92783.0,0.09173818]
[1767747603029,0.010781,92790.0,92776.0,0.09173818]
[1767747603232,0.19238929,92800.0,92777.0,0.09172]
[1767747603431,0.010782,92788.0,92778.0,0.09172]
[1767747603630,0.010782,92788.0,92779.0,0.09172]
[1767747603929,0.010781,92794.0,92779.0,0.09172]
[1767747604338,0.010781,92792.0,92772.0,0.010783]
[1767747604539,0.010781,92792.0,92773.0,0.09172]
[1767747604843,0.010781,92795.0,92774.0,0.09172]
[1767747605037,0.010781,92793.0,92774.0,0.09172]
[1767747605241,0.010781,92791.0,92774.0,0.09172]
[1767747605936,0.09945399,92799.0,92774.0,0.09172]
[1767747606138,0.010781,92790.0,92775.0,0.09168]
[1767747606740,0.010781,92790.0,92776.0,0.09168]
[1767747607328,0.09945399,92799.0,92776.0,0.09168]
[1767747607537,0.010782,92781.0,92759.0,0.010785]
[1767747607738,0.010783,92777.0,92760.0,0.09168]
[1767747607936,0.09945399,92783.0,92764.0,0.010784]
[1767747608145,0.010782,92787.0,92767.0,0.010784]